Workbook

Sheet Black Scholes Option Pricing
A1: The Black-Scholes Options Pricing Model
A3: Input Definitions | B3: Symbols | C3: Inputs | E3: Formula Values | F3: Outputs
A4: Stock Price | B4: S = | C4: 40 | E4: d1 = | F4: =((LN(C4/C5))+(C6+0.5*C7^2)*C8)/(C7*C8^0.5) -> 1.47572829
A5: Exercise Price | B5: X = | C5: 30 | E5: d2 = | F5: =F4-C7*C8^0.5 -> 1.22572829
A6: Riskless Rate | B6: r = | C6: 0.05 | E6: N(d1) = | F6: =NORMDIST(F4,0,1,1) -> 0.9299915759
A7: Standard Deviation | B7: sigma = | C7: 0.25 | E7: N(d2) = | F7: =NORMDIST(F5,0,1,1) -> 0.8898495297
A8: Time to Expiry | B8: T = | C8: 1 | E8: c0 = | F8: =C4*F6-C5*2.7182818^(-C6*C8)*F7 -> 11.80613134
E9: p0 = | F9: =F8+C5*EXP(-C6*C8)-C4 -> 0.3430140755
A12: The Black Scholes Options Pricing Formulas:

Sheet Greeks
A1: Option Greeks
B4: The Black-Scholes Options Pricing Model
B5: Option 1
B6: Input Definitions | C6: Symbols | D6: Inputs | F6: Formula Values | G6: Outputs
B7: Stock Price | C7: S = | D7: 75 | F7: d1 = | G7: =((LN(D7/D8))+(D9+0.5*D10^2)*D11)/(D10*D11^0.5) -> 0.09001992181
B8: Exercise Price | C8: X = | D8: 80 | F8: d2 = | G8: =G7-D10*D11^0.5 -> -0.1928227907
B9: Riskless Rate | C9: r = | D9: 0.1 | F9: N(d1) = | G9: =NORMDIST(G7,0,1,1) -> 0.5358643081
B10: Standard Deviation | C10: sigma = | D10: 0.4 | F10: N(d2) = | G10: =NORMDIST(G8,0,1,1) -> 0.423548877
B11: Time to Expiry | C11: T = | D11: 0.5 | F11: c0 = | G11: =D7*G9-D8*2.7182818^(-D9*D11)*G10 -> 7.958450728
F12: p0 = | G12: =-D7+G11+D8*2.7182818^(-D9*D11) -> 9.056804728 | H12: Puts
F13: Delta = | G13: =G9 -> 0.5358643081 | H13: =G13-1 -> -0.4641356919
F14: Gamma = | G14: =((2.7182818^(-($G$7^2)/2))/(2*3.141)^0.5)/($D$7*$D$10*$D$11^0.5) -> 0.01873204126 | H14: =((2.7182818^(-($G$7^2)/2))/(2*3.141)^0.5)/($D$7*$D$10*$D$11^0.5) -> 0.01873204126
F15: Theta = | G15: =(-$D$9*$D$8*2.7182818^(-$D$9*$D$11))*$G$10-($D$10*$D$7)*((2.7182818^(-($G$7^2)/2))/(2*(2*3.14128)^0.5*$D$11^0.5)) -> -11.65218012 | H15: =($D$9*$D$8*2.7182818^(-$D$9*$D$11))*NORMDIST(-G8,0,1,1)-($D$10*$D$7)*((2.7182818^(($G$7^2)/2))/(2*(2*3.14128)^0.5*$D$11^0.5)) -> -4.1109277
F16: Vega = | G16: =($D$7*$D$11^0.5)*((2.7182818^(-($G$7^2)/2))/(2*3.14128)^0.5) -> 21.07260719 | H16: =($D$7*$D$11^0.5)*((2.7182818^(-($G$7^2)/2))/(2*3.14128)^0.5) -> 21.07260719
F17: Rho = | G17: =$D$11*$D$8*2.7182818^(-$D$9*$D$11)*$G$10 -> 16.11568619 | H17: =-$D$11*$D$8*2.7182818^(-$D$9*$D$11)*NORMDIST(-G8,0,1,1) -> -21.93349081

Sheet Black-Scholes Variance Estimate
A1: The Black-Scholes Options Pricing Model
A3: Input Definitions | B3: Symbols | C3: Inputs | E3: Formula Values | F3: Outputs
A4: Stock Price | B4: S = | C4: 30 | E4: d1 = | F4: =((LN(C4/C5))+(C6+0.5*C7^2)*C8)/(C7*C8^0.5) -> -0.3505505903
A5: Exercise Price | B5: X = | C5: 35 | E5: d2 = | F5: =F4-C7*C8^0.5 -> -0.6333933028
A6: Riskless Rate | B6: r = | C6: 0.03 | E6: N(d1) = | F6: =NORMDIST(F4,0,1,1) -> 0.362962765
A7: Standard Deviation | B7: sigma = | C7: 0.4 | E7: N(d2) = | F7: =NORMDIST(F5,0,1,1) -> 0.2632384187
A8: Time to Expiry | B8: T = | C8: 0.5 | E8: c0 = | F8: =C4*F6-C5*2.7182818^(-C6*C8)*F7 -> 1.812707127 | G8: Substitute values for sigma until c0 equals market price.
A12: The Black Scholes Options Pricing Formulas:

Sheet Method of Bisection
A1: Using the Bisection Method to Estimate Implied Volatility
A2: a1 = | B2: 0.5 | C2: b1= | D2: 0.2 | G2: Enter values in the unhighlighted cells.
A3: rf = | B3: 0.1 | C3: S0= | D3: 75 | E3: X = | F3: 80 | G3: ="The Implied volatility is " & D27 -> The Implied volatility is 0.411465644836426
A4: C0= | B4: 8.2 | C4: T = | D4: 0.5
C5: sn | D5: d1(sn) | E5: d2(sn) | F5: N[d1(sn)] | G5: N[d2(sn)] | H5: c(sn) | I5: f(sn)
A6: f(a1)= | B6: =I6 -> 1.860465058 | C6: =B2 -> 0.5 | D6: =(LN($D$3/$F$3)+($B$3+0.5*C6^2)*$D$4)/(C6*$D$4^0.5) -> 0.1356555478 | E6: =D6-C6*$D$4^0.5 -> -0.2178978428 | F6: =NORMDIST(D6,0,1,TRUE) -> 0.5539532047 | G6: =NORMDIST(E6,0,1,TRUE) -> 0.413754354 | H6: =$D$3*F6-$F$3*2.7182818^(-$B$3*$D$4)*G6 -> 10.06046506 | I6: =H6-$B$4 -> 1.860465058
A7: f(b1)= | B7: =I7 -> -4.4678735 | C7: =D2 -> 0.2 | D7: =(LN($D$3/$F$3)+($B$3+0.5*C7^2)*$D$4)/(C7*$D$4^0.5) -> -0.03209219073 | E7: =D7-C7*$D$4^0.5 -> -0.173513547 | F7: =NORMDIST(D7,0,1,TRUE) -> 0.4871992655 | G7: =NORMDIST(E7,0,1,TRUE) -> 0.4311238902 | H7: =$D$3*F7-$F$3*2.7182818^(-$B$3*$D$4)*G7 -> 3.7321265 | I7: =H7-$B$4 -> -4.4678735
A8: n | B8: an | C8: bn | D8: sn | E8: d1(sn) | F8: d2(sn) | G8: N[d1(sn)] | H8: N[d2(sn)] | I8: c(sn) | J8: f(sn)
A9: 1 | B9: =C6 -> 0.5 | C9: =C7 -> 0.2 | D9: =(B9+C9)/2 -> 0.35 | E9: =(LN($D$3/$F$3)+($B$3+0.5*D9^2)*$D$4)/(D9*$D$4^0.5) -> 0.06499919022 | F9: =E9-D9*$D$4^0.5 -> -0.1824881832 | G9: =NORMDIST(E9,0,1,TRUE) -> 0.5259126775 | H9: 0.4275998136 | I9: =$D$3*G9-$F$3*2.7182818^(-$B$3*$D$4)*H9 -> 6.903808831 | J9: =I9-$B$4 -> -1.296191169
A10: 2 | B10: =IF(J9>0,D9,B9) -> 0.5 | C10: =IF(J9>0,C9,D9) -> 0.35 | D10: 0.425 | E10: 0.1018823704 | F10: -0.1986380116 | G10: 0.5405749782 | H10: 0.4212729585 | I10: 8.484944637 | J10: 0.2849446374
A11: 3 | B11: 0.425 | C11: 0.35 | D11: 0.3875 | E11: 0.08394239364 | F11: -0.1900614841 | G11: 0.5334488834 | H11: 0.4246304756 | I11: 7.694986004 | J11: -0.5050139961
A12: 4 | B12: 0.425 | C12: 0.3875 | D12: 0.40625 | E12: 0.0930204218 | F12: -0.1942417081 | G12: 0.5370563313 | H12: 0.4229933132 | I12: 8.090129962 | J12: -0.1098700378
A13: 5 | B13: 0.425 | C13: 0.40625 | D13: 0.415625 | E13: 0.09747657829 | F13: -0.1964146776 | G13: 0.5388260333 | H13: 0.4221428045 | I13: 8.287579923 | J13: 0.08757992321
A14: 6 | B14: 0.415625 | C14: 0.40625 | D14: 0.4109375 | E14: 0.09525501104 | F14: -0.1953216819 | G14: 0.537943862 | H14: 0.4225705621 | I14: 8.188865419 | J14: -0.01113458137
A15: 7 | B15: 0.415625 | C15: 0.4109375 | D15: 0.41328125 | E15: 0.09636739472 | F15: -0.1958665797 | G15: 0.5383856066 | H15: 0.4223572981 | I15: 8.238225313 | J15: 0.03822531257
A16: 8 | B16: 0.41328125 | C16: 0.4109375 | D16: 0.412109375 | E16: 0.09581160631 | F16: -0.1955937273 | G16: 0.5381649004 | H16: 0.4224640852 | I16: 8.213546023 | J16: 0.01354602319
A17: 9 | B17: 0.412109375 | C17: 0.4109375 | D17: 0.4115234375 | E17: 0.09553340996 | F17: -0.1954576033 | G17: 0.5380544229 | H17: 0.4225173626 | I17: 8.201205885 | J17: 0.001205884958
A18: 10 | B18: 0.4115234375 | C18: 0.4109375 | D18: 0.4112304688 | E18: 0.09539423587 | F18: -0.1953896172 | G18: 0.5379991528 | H18: 0.4225439721 | I18: 8.195035693 | J18: -0.004964307237
A19: 11 | B19: 0.4115234375 | C19: 0.4112304688 | D19: 0.4113769531 | E19: 0.09546382925 | F19: -0.1954236039 | G19: 0.5380267905 | H19: 0.4225306698 | I19: 8.198120799 | J19: -0.001879200893
A20: 12 | B20: 0.4115234375 | C20: 0.4113769531 | D20: 0.4114501953 | E20: 0.09549862119 | F20: -0.195440602 | G20: 0.5380406073 | H20: 0.4225240168 | I20: 8.199663345 | J20: -0.0003366554051
A21: 13 | B21: 0.4115234375 | C21: 0.4114501953 | D21: 0.4114868164 | E21: 0.09551601597 | F21: -0.1954491023 | G21: 0.5380475152 | H21: 0.4225206898 | I21: 8.200434615 | J21: 0.0004346154169
A22: 14 | B22: 0.4114868164 | C22: 0.4114501953 | D22: 0.4114685059 | E22: 0.09550731868 | F22: -0.1954448521 | G22: 0.5380440613 | H22: 0.4225223534 | I22: 8.20004898 | J22: 4.898016606e-05
A23: 15 | B23: 0.4114685059 | C23: 0.4114501953 | D23: 0.4114593506 | E23: 0.09550296996 | F23: -0.195442727 | G23: 0.5380423343 | H23: 0.4225231851 | I23: 8.199856162 | J23: -0.0001438375795
A24: 16 | B24: 0.4114685059 | C24: 0.4114593506 | D24: 0.4114639282 | E24: 0.09550514433 | F24: -0.1954437895 | G24: 0.5380431978 | H24: 0.4225227692 | I24: 8.199952571 | J24: -4.74286967e-05
A25: 17 | B25: 0.4114685059 | C25: 0.4114639282 | D25: 0.411466217 | E25: 0.0955062315 | F25: -0.1954443208 | G25: 0.5380436296 | H25: 0.4225225613 | I25: 8.200000776 | J25: 7.757371883e-07
A26: 18 | B26: 0.411466217 | C26: 0.4114639282 | D26: 0.4114650726 | E26: 0.09550568791 | F26: -0.1954440552 | G26: 0.5380434137 | H26: 0.4225226653 | I26: 8.199976674 | J26: -2.332647913e-05
A27: 19 | B27: 0.411466217 | C27: 0.4114650726 | D27: 0.4114656448 | E27: 0.09550595971 | F27: -0.195444188 | G27: 0.5380435216 | H27: 0.4225226133 | I27: 8.199988725 | J27: -1.127537081e-05

Sheet Newton Raphson
A1: Using the Newton Raphson Method to Estimate Implied Volatility
A2: s0 = | B2: 0.6 | D2: S0= | E2: 75
A3: rf = | B3: 0.1 | D3: T = | E3: 0.5
A4: C0= | B4: 8.2 | D4: X = | E4: 80
A6: n | B6: sn | C6: f'(sn) | D6: d1(sn) | E6: d2(sn) | F6: N(d1) | G6: N (d2) | H6: f(sn)
A7: 1 | B7: =B2 -> 0.6 | C7: =($E$2*$E$3^0.5*2.7182818^(-(D7^2)/2))/((2*3.14159)^0.5) -> 20.82509059 | D7: =(LN($E$2/$E$4)+($B$3+0.5*B7^2)*$E$3)/(B7*$E$3^0.5) -> 0.1778644114 | E7: =D7-B7*$E$3^0.5 -> -0.2463996573 | F7: =NORMDIST(D7,0,1,TRUE) -> 0.5705852696 | G7: 0.4026864357 | H7: =$E$2*F7-$E$4*2.7182818^(-$B$3*$E$3)*G7-$B$4 -> 3.950120284
A8: 2 | B8: =B7-(H7/C7) -> 0.4103191788 | C8: 21.06193992 | D8: 0.09496100489 | E8: -0.1951784689 | F8: 0.5378270998 | G8: 0.4226266171 | H8: -0.02415743755
A9: 3 | B9: =B8-(H8/C8) -> 0.41146615 | C9: 21.06084639 | D9: 0.09550619964 | E9: -0.1954443052 | F9: 0.5380436169 | G9: 0.4225225674 | H9: -6.368769583e-07
A10: 4 | B10: =B9-(H9/C9) -> 0.4114661802 | C10: 21.06084636 | D10: 0.09550621401 | E10: -0.1954443122 | F10: 0.5380436226 | G10: 0.4225225646 | H10: -2.593480986e-13
A11: 5 | B11: =B10-(H10/C10) -> 0.4114661802 | C11: 21.06084636 | D11: 0.09550621401 | E11: -0.1954443122 | F11: 0.5380436226 | G11: 0.4225225646 | H11: 0
A12: 6 | B12: =B11-(H11/C11) -> 0.4114661802 | C12: 21.06084636 | D12: 0.09550621401 | E12: -0.1954443122 | F12: 0.5380436226 | G12: 0.4225225646 | H12: 0

Sheet Compound Option Model
A1: Geske-Roll-Whaley Compound Option Formula
A3: Input Definitions | B3: Symbols | C3: Inputs | E3: Formula Values | F3: Outputs
A4: Stock Price | B4: S = | C4: 50 | E4: d1 = | F4: =((LN((C4-IF(C11<C9,C10*EXP(-C7*C11),0))/B13))+(C7+0.5*C8^2)*C11)/(C8*C11^0.5) -> 0.8244042471 | G4: =((LN((C4-IF(C11<C9,C10*EXP(-C7*C9),0))/C6))+(C7+0.5*C8^2)*C9)/(C8*C9^0.5) -> 0.5669600403 | H4: =y1
A5: First Exercise Price | B5: X1 = | C5: 3 | E5: d2 = | F5: =F4-C8*C11^0.5 -> 0.6244042471 | G5: =(G4-C8*C9^0.5) -> 0.2841173278 | H5: =y2
A6: Second Exercise Price | B6: X2 = | C6: 45 | E6: N(d1) = | F6: =NORMDIST(F4,0,1,1) -> 0.7951450488 | G6: =NORMDIST(G4,0,1,1) -> 0.7146293346 | H6: =N(y1)
A7: Riskless Rate | B7: r = | C7: 0.03 | E7: N(d2) = | F7: =NORMDIST(F5,0,1,1) -> 0.7338189317 | G7: =NORMDIST(G5,0,1,1) -> 0.6118397659 | H7: =N(y2)
A8: Standard Deviation | B8: sigma = | C8: 0.4 | G8: =((C11/C9)^0.5) -> 0.7071067812 | H8: =rho
A9: Second Expiry Date | B9: T2 = | C9: 0.5 | G9: =bivar(F4,G4,G8) ->  | H9: =bivar(d(1),y(1);rho)
A10: Dividend Amount | B10: D = | C10: 0 | G10: =bivar(F5,G5,G8) ->  | H10: =bivar(d(2),y(2);rho)
A11: First Expiry Date | B11: T1 = | C11: 0.25
A13: Trial S*tD = | B13: 43.58191 | C13: IF B14 < B15
A14: CtD = | B14: =(B13-C10)*NORMDIST((LN((B13-C10)/C6)+(C7+0.5*C8^2)*(C9-C11))/(C8*(C9-C11)^0.5),0,1,1)-C6*2.7182818^(-C7*(C9-C11))*NORMDIST((LN((B13-C10)/C6)+(C7-0.5*C8^2)*(C9-C11))/(C8*(C9-C11)^0.5),0,1,1) -> 3.000000075 | C14: RAISE B13
A15: X1 = | B15: =C5 -> 3
A21: c0,call = | B21: =C4*G9-C6*2.7182818^-(C7*C9)*G10-C5*2.7182818^-(C7*C11)*F7 -> 

Sheet European Known Dividend Model
A1: Black-Scholes European Known Dividend Model
A3: Input Definitions | B3: Symbols | C3: Inputs | E3: Formula Values | F3: Outputs
A4: Stock Price | B4: S = | C4: 50 | E4: d1 = | F4: =((LN((C4-IF(C10<C8,C9*EXP(-C6*C10),0))/C5))+(C6+0.5*C7^2)*C8)/(C7*C8^0.5) -> 0.1973884043
A5: Exercise Price | B5: X = | C5: 45 | E5: d2 = | F5: =F4-C7*C8^0.5 -> -0.08545430814
A6: Riskless Rate | B6: r = | C6: 0.03 | E6: N(d1) = | F6: =NORMDIST(F4,0,1,1) -> 0.5782381984
A7: Standard Deviation | B7: sigma = | C7: 0.4 | E7: N(d2) = | F7: =NORMDIST(F5,0,1,1) -> 0.4659501097
A8: Time to Expiry | B8: T = | C8: 0.5 | E8: c0 = | F8: =(C4-IF(C10<C8,C9*EXP(-C6*C10),0))*F6-C5*2.7182818^(-C6*C8)*F7 -> 5.386736013
A9: Dividend Amount | B9: D = | C9: 5 | E9: p0 = | F9: =F8+C5*EXP(-C6*C8)-(C4-IF(C10<C8,C9*EXP(-C6*C10),0)) -> 4.67941357
A10: Ex-dividend Date | B10: t1 = | C10: 0.25
A12: The European Known Dividend Options Pricing Formulas:

Sheet Black's Pseudo American Call
A1: Black's Pseudo-American Call Model
A2: Black-Scholes European Known Dividend Model
A3: Input Definitions | B3: Symbols | C3: Inputs | E3: Formula Values | F3: Outputs
A4: Stock Price | B4: S = | C4: 50 | E4: d1 = | F4: =((LN((C4-IF(C10<C8,C9*EXP(-C6*C10),0))/C5))+(C6+0.5*C7^2)*C8)/(C7*C8^0.5) -> 0.1973884043
A5: Exercise Price | B5: X = | C5: 45 | E5: d2 = | F5: =F4-C7*C8^0.5 -> -0.08545430814
A6: Riskless Rate | B6: r = | C6: 0.03 | E6: N(d1) = | F6: =NORMDIST(F4,0,1,1) -> 0.5782381984
A7: Standard Deviation | B7: sigma = | C7: 0.4 | E7: N(d2) = | F7: =NORMDIST(F5,0,1,1) -> 0.4659501097
A8: Time to Expiry | B8: T = | C8: 0.5 | E8: c0 = | F8: =(C4-IF(C10<C8,C9*EXP(-C6*C10),0))*F6-C5*2.7182818^(-C6*C8)*F7 -> 5.386736013
A9: Dividend Amount | B9: D = | C9: 5 | E9: p0 = | F9: =F8+C5*EXP(-C6*C8)-(C4-IF(C10<C8,C9*EXP(-C6*C10),0)) -> 4.67941357
A10: Ex-dividend Date | B10: t1 = | C10: 0.25
A12: The European Known Dividend Options Pricing Formulas:
A27: X[1-e-r(T-tD)] = | B27: =C5*(1-2.7182818^(-C6*(C8-C10))) -> 0.3362375296 | C27: Compare dividend to present value of exercise money.
A28: Black-Scholes Model for Use with Black's Pseudo-American Call Model
A29: Input Definitions | B29: Symbols | C29: Inputs | E29: Formula Values | F29: Outputs
A30: Stock Price | B30: S = | C30: =C4 -> 50 | E30: d1 = | F30: =((LN(C30/C31))+(C32+0.5*C33^2)*C36)/(C33*C36^0.5) -> 0.6643025783
A31: Exercise Price | B31: X = | C31: =C5 -> 45 | E31: d2 = | F31: =F30-C33*C36^0.5 -> 0.4643025783
A32: Riskless Rate | B32: r = | C32: =C6 -> 0.03 | E32: N(d1) = | F32: =NORMDIST(F30,0,1,1) -> 0.7467516644
A33: Standard Deviation | B33: sigma = | C33: =C7 -> 0.4 | E33: N(d2) = | F33: =NORMDIST(F31,0,1,1) -> 0.6787845115
A34: Time to Expiry | B34: T = | C34: =C36 -> 0.25 | E34: c0 = | F34: =(C30*F32)-C31*2.7182818^(-C32*C36)*F33 -> 7.02051303
A35: Dividend Amount | B35: D = | C35: =C9 -> 5 | E35: p0 = | F35: =F34+C31*EXP(-C32*C34)-(C30-IF(C36<C34,C35*EXP(-C32*C36),0)) -> 1.684275497
A36: Ex-dividend Date | B36: tD = | C36: =C10 -> 0.25

Sheet Geske Roll Whaley Model
A1: Geske-Roll-Whaley Compound Option Dividend Adjustment Formula
A3: Input Definitions | B3: Symbols | C3: Inputs | E3: Formula Values | F3: Outputs
A4: Stock Price | B4: S = | C4: 50 | E4: d1 = | F4: =((LN((C4-IF(C10<C8,C9*EXP(-C6*C10),0))/C5))+(C6+0.5*C7^2)*C8)/(C7*C8^0.5) -> 0.1973884043 | G4: =((LN((C4-IF(C10<C8,C9*EXP(-C6*C10),0))/B13))+(C6+0.5*C7^2)*C10)/(C7*C10^0.5) -> 0.6692073024 | H4: =y1
A5: Exercise Price | B5: X = | C5: 45 | E5: d2 = | F5: =F4-C7*C8^0.5 -> -0.08545430814 | G5: =(G4-C7*C10^0.5) -> 0.4692073024 | H5: =y2
A6: Riskless Rate | B6: r = | C6: 0.03 | E6: N(d1) = | F6: =NORMDIST(F4,0,1,1) -> 0.5782381984 | G6: =NORMDIST(G4,0,1,1) -> 0.7483183757 | H6: =N(y1)
A7: Standard Deviation | B7: sigma = | C7: 0.4 | E7: N(d2) = | F7: =NORMDIST(F5,0,1,1) -> 0.4659501097 | G7: =NORMDIST(G5,0,1,1) -> 0.6805392668 | H7: =N(y2)
A8: Time to Expiry | B8: T = | C8: 0.5 | G8: =((C10/C8)^0.5) -> 0.7071067812 | H8: =rho
A9: Dividend Amount | B9: D = | C9: 5 | G9: =bivar(F4,-G4,-G8) ->  | H9: =bivar(d(1),-y(1);-rho)
A10: Ex-dividend Date | B10: tD = | C10: 0.25 | G10: =bivar(F5,-G5,-G8) ->  | H10: =bivar(d(2),-y(2);-rho)
A13: Trial S*tD = | B13: 40.493882 | C13: IF B14 > B15
A14: CtD = | B14: =(B13-C9)*NORMDIST((LN((B13-C9)/C5)+(C6+0.5*C7^2)*(C8-C10))/(C7*(C8-C10)^0.5),0,1,1)-C5*2.7182818^(-C6*(C8-C10))*NORMDIST((LN((B13-C9)/C5)+(C6-0.5*C7^2)*(C8-C10))/(C7*(C8-C10)^0.5),0,1,1) -> 0.4938824203 | C14: RAISE B13 | G14: 1.5 | H14: 0.3 | I14: =y1
A15: S*tD + D - X | B15: =B13+C9-C5 -> 0.493882 | G15: =G14-D17*D18^0.5 -> -6.238134831 | H15: =(H14-D17*D20^0.5) -> 0.3 | I15: =y2
G16: =NORMDIST(G14,0,1,1) -> 0.9331927987 | H16: =NORMDIST(H14,0,1,1) -> 0.6179114222 | I16: =N(y1)
D17: =G6/G7 -> 1.099596176 | G17: =NORMDIST(G15,0,1,1) -> 2.214094555e-10 | H17: =NORMDIST(H15,0,1,1) -> 0.6179114222 | I17: =N(y2)
D18: =(C4-C9*2.7182818^-(C10*C6))*D17 -> 49.52290855 | H18: 0.5 | I18: =rho
D19: =D18-C9*2.7182818^-(C10*C6) -> 44.56026827 | H19: =bivar(G14,H14,H18) ->  | I19: =bivar(d(1),-y(1);rho)
H20: =bivar(G15,-H15,H18) ->  | I20: =bivar(d(2),-y(2);rho)
A21: c0 = | B21: =SUM(B26:B35) -> 
B26: =($C$4-$C$9*2.7182818^(-$C$6*$C$10))*G6 -> 33.70228387
B29: =($C$4-$C$9*2.7182818^(-$C$6*$C$10))*G9 -> 
B32: =-($C$5*2.7182818^(-$C$6*$C$8))*G10 -> 
B35: =-(($C$5-$C$9)*2.7182818^(-$C$6*$C$10))*G7 -> -27.01817259

Sheet Merton Dividend Leakage
A1: The Merton Continuous Dividend Leakage Options Pricing Model
A3: Input Definitions | B3: Symbols | C3: Inputs | E3: Formula Values | F3: Outputs
A4: Stock Price | B4: S = | C4: 75 | E4: d1 = | F4: =((LN(C4/C5))+(C6-C9+0.5*C7^2)*C8)/(C7*C8^0.5) -> 0.05466458275
A5: Exercise Price | B5: X = | C5: 80 | E5: d2 = | F5: =F4-C7*C8^0.5 -> -0.2281781297
A6: Riskless Rate | B6: r = | C6: 0.1 | E6: N(d1) = | F6: =NORMDIST(F4,0,1,1) -> 0.521797157
A7: Standard Deviation | B7: sigma = | C7: 0.4 | E7: N(d2) = | F7: =NORMDIST(F5,0,1,1) -> 0.4097538815
A8: Time to Expiry | B8: T = | C8: 0.5 | E8: c0 = | F8: =C4*(2.7182818^(-C9*C8))*F6-C5*2.7182818^(-C6*C8)*F7 -> 7.563793218
A9: Dividend Yield | B9: d = | C9: 0.02 | E9: p0 = | F9: =F8+C5*EXP(-C6*C8)-C4*(2.7182818^(-C9*C8)) -> 9.40840964
A12: The Merton Continuous Leakage Formulas:
B27: p0 = c0 + Xe-rft - S0e-rfT

Sheet Margrabe Exchange Options
A1: The Margrabe-Fisher Exchange Options Pricing Model
A3: Input Definitions | B3: Symbols | C3: Inputs | E3: Formula Values | F3: Outputs
A4: Asset 1 Value | B4: S1,0 = | C4: 50 | E4: σ = | F4: =(C7^2+C8^2-2*C10*C7*C8)^0.5 -> 0.7211102551
A5: Asset 2 Value | B5: S2,0 = | C5: 40 | E5: d1 = | F5: =((LN(C4/C5))+(0.5*F4^2)*C9)/(F4*C9^0.5) -> 0.7991664223
A6: Riskless Rate | B6: r(f) = | C6: 0.05 | E6: d2 = | F6: =F5-F4*C9^0.5 -> 0.4386112947
A7: Standard Deviation 1 | B7: sigma (1) = | C7: 0.4 | E7: N(d1) = | F7: =NORMDIST(F5,0,1,1) -> 0.7879030405
A8: Standard Deviation 1 | B8: sigma (1) = | C8: 0.6 | E8: N(d2) = | F8: =NORMDIST(F6,0,1,1) -> 0.6695283942
A9: Time to Expiry | B9: T = | C9: 0.25 | E9: c0 = | F9: =C4*F7-C5*F8 -> 12.61401626
A10: Asset Correlation | B10: r1,2 = | C10: 0 | E10: p0= | F10: =F9+C5-C4 -> 2.614016256

Sheet Currency Option Pricing
A1: The Garman and Köhlagen Options Pricing Model (Currencies)
A3: Input Definitions | B3: Symbols | C3: Inputs | E3: Formula Values | F3: Outputs
A4: Exchange Rate | B4: s0 = | C4: 0.5 | E4: d1 = | F4: =((LN((C4)/(C5)))+(C6-C9+0.5*C7^2)*C8)/(C7*C8^0.5) -> 0.1313357303
A5: Exercise Price | B5: X = | C5: 0.45 | E5: d2 = | F5: =F4-C7*C8^0.5 -> -0.08079630403
A6: Domestic Riskless Rate | B6: r(d) = | C6: 0.03 | E6: N(d1) = | F6: =NORMDIST(F4,0,1,1) -> 0.5522451361
A7: Standard Deviation | B7: sigma = | C7: 0.15 | E7: N(d2) = | F7: =NORMDIST(F5,0,1,1) -> 0.4678019737
A8: Time to Expiry | B8: T = | C8: 2 | E8: c0 = | F8: =C4*2.7182818^(-C9*C8)*F6-C5*2.7182818^(-C6*C8)*F7 -> 0.0370444432
A9: Foreign Riskless Rate | B9: r(f) = | C9: 0.08 | E9: p0= | F9: =F8+C5*2.718^(-C6*C8)-C4*2.718^(-C9*C8) -> 0.03476215691

Sheet Chooser Options
A1: Chooser Options
A2: Call(S,X,r,s,T,d) | H2: Put(S,X,r,s,tc,d)
A3: Input Definitions | B3: Symbols | C3: Inputs | E3: Formula Values | F3: Outputs | H3: Input Definitions | I3: Symbols | J3: Inputs | L3: Formula Values | M3: Outputs
A4: Stock Price | B4: S = | C4: 50 | E4: d1 = | F4: =((LN(C4/C5))+(C6-C9+0.5*C7^2)*C8)/(C7*C8^0.5) -> 0.325 | H4: Stock Price | I4: S = | J4: =C4 -> 50 | L4: d1 = | M4: =(((LN(J4/J5))+(J6-J9)*C8+(0.5*J7^2)*C10))/(J7*C10^0.5) -> 0.3181980515
A5: Exercise Price | B5: X = | C5: 50 | E5: d2 = | F5: =F4-C7*C8^0.5 -> -0.075 | H5: Exercise Price | I5: X = | J5: 50 | L5: d2 = | M5: =M4-J7*C10^0.5 -> 0.03535533906
A6: Riskless Rate | B6: r = | C6: 0.05 | E6: N(d1) = | F6: =NORMDIST(F4,0,1,1) -> 0.6274094642 | H6: Riskless Rate | I6: r = | J6: 0.05 | L6: N(d1) = | M6: =NORMDIST(M4,0,1,1) -> 0.6248326447
A7: Standard Deviation | B7: sigma = | C7: 0.4 | E7: N(d2) = | F7: =NORMDIST(F5,0,1,1) -> 0.4701073559 | H7: Standard Deviation | I7: sigma = | J7: 0.4 | L7: N(d2) = | M7: =NORMDIST(M5,0,1,1) -> 0.5141018017
A8: Time to Expiry | B8: T = | C8: 1 | E8: c0 = | F8: =C4*(2.7182818^(-C9*C8))*F6-C5*2.7182818^(-C6*C8)*F7 -> 9.011475713 | H8: Time to Expiry | I8: T = | J8: 1 | L8: c0 = | M8: =J4*(2.7182818^(-J9*C8))*M6-J5*2.7182818^(-J6*C8)*M7 -> 6.790194174
A9: Dividend Yield | B9: d = | C9: 0 | E9: p0 = | F9: =F8+C5*EXP(-C6*C8)-C4*(2.7182818^(-C9*C8)) -> 6.572946938 | H9: Dividend Yield | I9: d = | J9: 0 | L9: p0 = | M9: =M8+J5*EXP(-J6*C8)-J4*(2.7182818^(-J9*C8)) -> 4.351665399
A10: Chooser Date | B10: tc = | C10: 0.5 | H10: Chooser Date | I10: tc = | J10: 0.5
E12: Chooser Option Value: | H12: =F8+M9 -> 13.36314111
